fUST/lending_fUST_20250705
["ID","MTS","AMOUNT","RATE_DAILY","PERIOD"]
[369671732,1751693447557,-460.0,0.00019896,2]
[369671733,1751693447566,-460.0,0.00019896,2]
[369671734,1751693447575,-460.0,0.00019896,2]
[369671735,1751693447587,-460.0,0.00019896,2]
[369671736,1751693447597,-460.0,0.00019896,2]
[369671737,1751693447606,-460.0,0.00019896,2]
[369671738,1751693447616,-460.0,0.00019896,2]
[369671739,1751693447627,-460.0,0.00019896,2]
[369671740,1751693447637,-460.0,0.00019896,2]
[369671741,1751693447646,-460.0,0.00019896,2]
[369671742,1751693447655,-460.0,0.00019896,2]
[369671743,1751693447665,-460.0,0.00019896,2]
[369671744,1751693447675,-460.0,0.00019896,2]
[369671745,1751693447684,-227.95507468,0.000199,2]
[369671746,1751693447694,-207.4,0.00019935,2]
[369671747,1751693447703,-2713.11240634,0.00019935,2]
[369671748,1751693447717,-2286.88759366,0.00019935,2]
[369671749,1751693447727,-690.642,0.00019935,2]
[369671750,1751693447736,-561.07874423,0.00019935,2]
[369671751,1751693447745,-185.9501363,0.00019972,2]
[369671752,1751693447754,-280.90544526,0.0001999,2]
[369671753,1751693447767,-435.29030874,0.0001999,2]
[369671754,1751693447776,-663.93109973,0.0002,2]
[369671755,1751693447786,-117.46808201,0.0002,2]
[369671756,1751693447798,-10681.77079717,0.0002,2]
[369671757,1751693447806,-6896.80046725,0.0002,2]
[369671758,1751693447816,-1099.64845964,0.0002,2]
[369671761,1751693578343,-150.0,0.000189,2]
[369671762,1751693578364,-5603.4255208,0.00019673,2]
[369671763,1751693578386,-159.69980908,0.00019673,2]
[369671764,1751693578408,-185.9501363,0.00019673,2]
[369671765,1751693578429,-340.38,0.00019684,3]
[369671766,1751693578450,-170.19,0.00019684,3]
[369671767,1751693578472,-510.57,0.00019684,3]
[369671768,1751693578495,-190.23387014,0.00019693,2]
[369671769,1751693578518,-500.0,0.00019693,2]
[369671770,1751693578546,-226.24748001,0.00019693,2]
[369671771,1751693578568,-609.97598394,0.00019693,2]
[369671772,1751693578590,-300.0,0.00019693,2]
[369671773,1751693578612,-18286.32719973,0.00019694,2]
[369671777,1751694098776,-158.0,0.00018739,2]
[369671778,1751694098799,-300.0,0.00019499,2]
[369671779,1751694098819,-480.0,0.00019499,2]
[369671780,1751694098840,-32504.0,0.000195,2]
[369671781,1751694182071,-1840.0,0.00019305,2]
[369671782,1751694182092,-455.0,0.00019305,2]
[369671783,1751694247110,-4579.0,0.00019112,2]
[369671784,1751694315787,-421.0,0.00019112,2]
[369671785,1751694315809,-1566.0,0.00019305,2]
[369671787,1751694384706,-510.11947164,0.000189,2]
[369671788,1751694384728,-4861.88052836,0.00019112,2]
[369671789,1751694387364,167.192,0.00013699,2]
[369671790,1751694457679,-168.0,0.0001907,2]
[369671791,1751694457701,-138.11947164,0.00019112,2]
[369671792,1751694457725,-168.0,0.00019117,2]
[369671793,1751694457748,-168.0,0.00019249,2]
[369671794,1751694457772,-85.88052836,0.00019304,2]
[369671795,1751694470034,-262.74198189,0.00018331,2]
[369671796,1751694475115,-156.31850739,0.00018331,2]
[369671797,1751694480841,-168.75269774,0.00018331,2]
[369671798,1751694488244,-298.60591958,0.00018331,2]
[369671799,1751694520987,-2976.13258169,0.00018331,2]
[369671800,1751694521009,-646.0214703,0.00018517,2]
[369671801,1751694521030,-10105.502978,0.00018585,2]
[369671802,1751694521054,-82.11947164,0.00019304,2]
[369671803,1751694521074,-30.22349837,0.00019305,2]
[369671810,1751694632699,-300.0,0.0001867,2]
[369671811,1751694632709,-300.0,0.0001867,2]
[369671812,1751694632719,-252.0,0.0001867,2]
[369671813,1751694632728,-300.0,0.0001867,2]
[369671814,1751694632737,-1200.0,0.0001867,2]
[369671815,1751694632746,-6163.17361564,0.00018671,2]
[369671816,1751694632902,-2798.24325071,0.00018671,2]
[369671817,1751694633090,-699.79020707,0.00018671,2]
[369671818,1751694633102,-288.11017684,0.00018671,2]
[369671819,1751694633265,-4703.28016954,0.00018671,2]
[369671828,1751694638662,-62.3461072,0.00018671,2]
[369671829,1751694638671,-168.0,0.00018988,2]
[369671830,1751694638682,-168.0,0.00019094,2]
[369671831,1751694638692,-96.4138928,0.00019256,2]
[369671832,1751694638705,-71.5861072,0.00019256,2]
[369671833,1751694638717,-168.0,0.00019272,2]
[369671834,1751694638728,-16.50589254,0.00019305,2]
[369671835,1751694638740,-168.0,0.00019537,2]
[369671836,1751694638749,-185.95013632,0.00019593,2]
[369671837,1751694638758,-57.54589908,0.00019659,2]
[369671838,1751694638770,-110.45410092,0.00019659,2]
[369671839,1751694638779,-1154.30424685,0.0001967,2]
[369671840,1751694638795,-45.69575315,0.0001967,2]
[369671841,1751694638804,-460.0,0.0001967,2]
[369671842,1751694638813,-460.0,0.0001967,2]
[369671843,1751694638823,-461.05559581,0.0001967,2]
[369671844,1751694638832,-462.09831367,0.0001967,2]
[369671845,1751694638842,-460.0,0.0001967,2]
[369671846,1751694638851,-460.0,0.0001967,2]
[369671847,1751694638860,-460.0,0.0001967,2]
[369671848,1751694638869,-460.0,0.0001967,2]
[369671849,1751694638879,-460.0,0.0001967,2]
[369671850,1751694638889,-463.06932966,0.0001967,2]
[369671851,1751694638898,-460.0,0.0001967,2]
[369671852,1751694638907,-460.0,0.00019671,2]
[369671853,1751694638917,-461.83999798,0.00019671,2]
[369671854,1751694638927,-460.0,0.00019671,2]
[369671855,1751694638937,-460.0,0.00019671,2]
[369671856,1751694638946,-461.20688207,0.00019671,2]
[369671857,1751694638958,-267.58982598,0.00019671,2]
[369671858,1751694638969,-539.86,0.00019671,2]
[369671859,1751694638978,-460.0,0.00019671,2]
[369671860,1751694638987,-460.0,0.00019671,2]
[369671861,1751694638996,-465.11104434,0.00019671,2]
[369671862,1751694639004,-460.0,0.00019671,2]
[369671863,1751694639013,-461.01052886,0.00019671,2]
[369671864,1751694639022,-460.0,0.00019671,2]
[369671865,1751694639031,-460.0,0.00019671,2]
[369671866,1751694639040,-460.0,0.00019671,2]
[369671867,1751694639049,-997.0,0.00019671,2]
[369671868,1751694639059,-460.0,0.00019671,2]
[369671869,1751694639068,-460.0,0.00019671,2]
[369671870,1751694639077,-460.0,0.00019671,2]
[369671871,1751694639085,-460.0,0.00019671,2]
[369671872,1751694639094,-460.0,0.00019671,2]
[369671873,1751694639103,-460.0,0.00019671,2]
[369671874,1751694639112,-460.0,0.00019672,2]
[369671875,1751694639121,-460.0,0.00019672,2]
[369671876,1751694639130,-460.0,0.00019672,2]
[369671877,1751694639139,-460.0,0.00019672,2]
[369671878,1751694639148,-460.0,0.00019672,2]
[369671879,1751694639157,-460.0,0.00019672,2]
[369671880,1751694639166,-460.0,0.00019672,2]
[369671881,1751694639175,-460.0,0.00019672,2]
[369671882,1751694639184,-460.0,0.00019672,2]
[369671883,1751694639193,-460.0,0.00019672,2]
[369671884,1751694639203,-460.0,0.00019672,2]
[369671885,1751694639212,-460.0,0.00019672,2]
[369671886,1751694639222,-460.0,0.00019672,2]
[369671887,1751694639231,-460.0,0.00019672,2]
[369671888,1751694639240,-460.0,0.00019672,2]
[369671889,1751694639249,-351.27117559,0.00019672,2]
[369671890,1751694639258,-460.0,0.00019672,2]
[369671891,1751694639267,-460.0,0.00019672,2]
[369671892,1751694639275,-460.0,0.00019672,2]
[369671893,1751694639284,-460.0,0.00019672,2]
[369671894,1751694639293,-453.59448635,0.00019672,2]
[369671895,1751694639302,-460.0,0.00019672,2]
[369671896,1751694639311,-1961.54,0.00019672,2]
[369671897,1751694639320,-460.0,0.00019672,2]
[369671898,1751694639329,-427.02709525,0.00019672,2]
[369671899,1751694639338,-460.0,0.00019672,2]
[369671900,1751694639347,-460.0,0.00019672,2]
[369671901,1751694639363,-460.0,0.00019672,2]
[369671902,1751694639373,-460.0,0.00019672,2]
[369671903,1751694639382,-460.0,0.00019672,2]
[369671904,1751694639392,-460.0,0.00019672,2]
[369671905,1751694639402,-460.0,0.00019672,2]
[369671906,1751694639411,-460.0,0.00019672,2]
[369671907,1751694639421,-460.0,0.00019672,2]
[369671908,1751694639430,-460.0,0.00019672,2]
[369671909,1751694639439,-460.0,0.00019672,2]
[369671910,1751694639449,-540.67968248,0.00019672,2]
[369671911,1751694639458,-460.0,0.00019672,2]
[369671912,1751694639467,-460.0,0.00019672,2]
[369671913,1751694639478,-1796.58,0.00019672,2]
[369671914,1751694639487,-460.0,0.00019672,2]
[369671915,1751694639496,-648.62,0.00019672,2]
[369671916,1751694639505,-471.17,0.00019672,2]
[369671917,1751694639514,-460.0,0.00019672,2]
[369671918,1751694639655,-606.51,0.00019672,2]
[369671919,1751694639666,-460.0,0.00019672,2]
[369671920,1751694639677,-460.0,0.00019672,2]
[369671921,1751694639686,-460.0,0.00019672,2]
[369671922,1751694639696,-460.0,0.00019672,2]
[369671923,1751694639706,-460.0,0.00019672,2]
[369671924,1751694639716,-462.50776846,0.00019672,2]
[369671925,1751694639726,-460.0,0.00019672,2]
[369671926,1751694639736,-460.0,0.00019672,2]
[369671927,1751694639746,-460.0,0.00019672,2]
[369671928,1751694639756,-460.0,0.00019672,2]
[369671929,1751694639766,-460.0,0.00019672,2]
[369671930,1751694639775,-1623.85,0.00019672,2]
[369671931,1751694639785,-460.0,0.00019672,2]
[369671932,1751694639794,-374.8760855,0.00019672,2]
[369671933,1751694639803,-460.0,0.00019672,2]
[369671934,1751694639813,-460.0,0.00019672,2]
[369671935,1751694639823,-460.0,0.00019672,2]
[369671936,1751694639833,-551.61,0.00019672,2]
[369671937,1751694639843,-830.11,0.00019672,2]
[369671938,1751694639852,-460.0,0.00019672,2]
[369671939,1751694639862,-477.71300419,0.00019672,2]
[369671940,1751694639871,-460.0,0.00019672,2]
[369671941,1751694639881,-460.0,0.00019672,2]
[369671942,1751694639890,-460.0,0.00019672,2]
[369671943,1751694639899,-460.0,0.00019672,2]
[369671944,1751694639908,-646.6,0.00019672,2]
[369671945,1751694639918,-460.0,0.00019672,2]
[369671946,1751694639927,-460.0,0.00019672,2]
[369671947,1751694639936,-460.0,0.00019672,2]
[369671948,1751694639946,-199.17043546,0.00019672,2]
[369671949,1751694639954,-460.0,0.00019672,2]
[369671950,1751694639964,-460.0,0.00019672,2]
[369671951,1751694639973,-460.0,0.00019672,2]
[369671952,1751694639982,-460.0,0.00019672,2]
[369671953,1751694639991,-460.0,0.00019672,2]
[369671954,1751694640000,-460.0,0.00019672,2]
[369671955,1751694640009,-460.0,0.00019672,2]
[369671956,1751694640018,-244.37978269,0.00019672,2]
[369671957,1751694640028,-460.0,0.00019672,2]
[369671958,1751694640037,-460.0,0.00019672,2]
[369671959,1751694640047,-460.0,0.00019672,2]
[369671960,1751694640056,-460.0,0.00019672,2]
[369671961,1751694640065,-460.0,0.00019672,2]
[369671962,1751694640075,-460.0,0.00019672,2]
[369671963,1751694640085,-500.0,0.00019673,2]
[369671964,1751694640095,-500.0,0.00019673,2]
[369671965,1751694640104,-500.0,0.00019673,2]
[369671966,1751694640113,-500.0,0.00019673,2]
[369671967,1751694640122,-500.0,0.00019673,2]
[369671968,1751694640132,-500.0,0.00019673,2]
[369671969,1751694640141,-501.65440701,0.00019673,2]
[369671971,1751694640151,-290.3782149,0.00019673,2]
[369671972,1751694640162,-500.0,0.00019673,2]
[369671973,1751694640171,-500.51527726,0.00019673,2]
[369671974,1751694640181,-517.93703613,0.00019673,2]
[369671975,1751694640191,-500.0,0.00019673,2]
[369671976,1751694640200,-500.0,0.00019673,2]
[369671977,1751694640210,-500.27804862,0.00019673,2]
[369671978,1751694640219,-210.40892954,0.00019673,2]
[369671979,1751694640229,-600.10988249,0.00019673,2]
[369671980,1751694640238,-500.0,0.00019673,2]
[369671981,1751694640248,-460.0,0.00019683,2]
[369671982,1751694640258,-460.0,0.00019683,2]
[369671983,1751694640267,-460.0,0.00019683,2]
[369671984,1751694640276,-460.0,0.00019683,2]
[369671985,1751694640286,-251.13,0.00019683,2]
[369671986,1751694640296,-820.09,0.00019683,3]
[369671987,1751694640305,-820.09,0.00019683,3]
[369671988,1751694640316,-7285.55907177,0.00019684,2]
[369671989,1751694640325,-460.0,0.00019692,2]
[369671990,1751694640334,-461.01265564,0.00019692,2]
[369671991,1751694640343,-460.0,0.00019692,2]
[369671992,1751694640355,-460.0,0.00019692,2]
[369671993,1751694640364,-460.0,0.00019692,2]
[369671994,1751694640374,-460.0,0.00019692,2]
[369671995,1751694640383,-460.0,0.00019692,2]
[369671996,1751694640392,-460.0,0.00019692,2]
[369671998,1751694640401,-421.76,0.00019692,2]
[369672000,1751694640411,-460.0,0.00019692,2]
[369672001,1751694640420,-460.0,0.00019692,2]
[369672002,1751694640429,-460.0,0.00019692,2]
[369672003,1751694640438,-460.0,0.00019692,2]
[369672004,1751694640448,-462.53,0.00019692,2]
[369672005,1751694640458,-460.0,0.00019692,2]
[369672006,1751694640467,-460.0,0.00019692,2]
[369672007,1751694640476,-460.0,0.00019692,2]
[369672008,1751694640486,-460.0,0.00019692,2]
[369672009,1751694640495,-460.0,0.00019692,2]
[369672010,1751694640504,-460.0,0.00019692,2]
[369672011,1751694640513,-460.0,0.00019692,2]
[369672012,1751694640523,-500.0,0.00019692,2]
[369672013,1751694640532,-460.0,0.00019692,2]
[369672014,1751694640541,-460.0,0.00019692,2]
[369672015,1751694640551,-460.0,0.00019692,2]
[369672016,1751694640560,-460.0,0.00019692,2]
[369672017,1751694640569,-460.0,0.00019692,2]
[369672018,1751694640578,-460.0,0.00019692,2]
[369672019,1751694640587,-460.0,0.00019692,2]
[369672020,1751694640597,-460.0,0.00019692,2]
[369672021,1751694640606,-460.0,0.00019692,2]
[369672022,1751694640616,-460.0,0.00019692,2]
[369672023,1751694640625,-460.0,0.00019692,2]
[369672024,1751694640634,-460.0,0.00019692,2]
[369672025,1751694640643,-460.0,0.00019692,2]
[369672026,1751694640652,-460.0,0.00019692,2]
[369672027,1751694640661,-461.24533633,0.00019692,2]
[369672028,1751694640671,-460.0,0.00019692,2]
[369672030,1751694640681,-460.0,0.00019692,2]
[369672032,1751694640690,-460.0,0.00019692,2]
[369672034,1751694640699,-460.0,0.00019692,2]
[369672036,1751694640709,-460.0,0.00019692,2]
[369672038,1751694640718,-460.0,0.00019692,2]
[369672040,1751694640727,-460.0,0.00019692,2]
[369672042,1751694640737,-460.0,0.00019692,2]
[369672044,1751694640746,-460.0,0.00019692,2]
[369672046,1751694640755,-460.0,0.00019692,2]
[369672048,1751694640765,-460.0,0.00019692,2]
[369672050,1751694640775,-498.29,0.00019692,2]
[369672052,1751694640784,-460.0,0.00019692,2]
[369672054,1751694640793,-500.0,0.00019692,2]
[369672056,1751694640803,-460.0,0.00019692,2]
[369672058,1751694640812,-460.63431283,0.00019692,2]
[369672060,1751694640823,-460.0,0.00019692,2]
[369672062,1751694640832,-460.0,0.00019692,2]
[369672064,1751694640842,-460.0,0.00019692,2]
[369672066,1751694640851,-490.7,0.00019692,2]
[369672068,1751694640860,-460.0,0.00019692,2]
[369672070,1751694640870,-460.0,0.00019692,2]
[369672072,1751694640879,-500.0,0.00019692,2]
[369672074,1751694640888,-460.0,0.00019692,2]
[369672076,1751694640898,-460.0,0.00019692,2]
[369672078,1751694640907,-460.0,0.00019692,2]
[369672080,1751694640917,-505.08,0.00019692,2]
[369672082,1751694640926,-460.0,0.00019692,2]
[369672084,1751694640936,-460.0,0.00019692,2]
[369672086,1751694640946,-461.95348188,0.00019692,2]
[369672088,1751694640955,-460.0,0.00019692,2]
[369672090,1751694640964,-460.0,0.00019692,2]
[369672092,1751694640974,-460.0,0.00019692,2]
[369672094,1751694640984,-460.0,0.00019692,2]
[369672096,1751694640993,-460.0,0.00019692,2]
[369672098,1751694641003,-460.0,0.00019692,2]
[369672100,1751694641012,-460.60181948,0.00019692,2]
[369672102,1751694641022,-460.0,0.00019692,2]
[369672104,1751694641031,-460.0,0.00019692,2]
[369672106,1751694641040,-678.24,0.00019692,2]
[369672108,1751694641050,-460.0,0.00019692,2]
[369672110,1751694641059,-460.0,0.00019692,2]
[369672112,1751694641068,-460.0,0.00019692,2]
[369672114,1751694641078,-460.0,0.00019692,2]
[369672117,1751694641087,-460.0,0.00019692,2]
[369672120,1751694641096,-462.96875389,0.00019692,2]
[369672122,1751694641106,-460.0,0.00019692,2]
[369672125,1751694641115,-460.0,0.00019692,2]
[369672127,1751694641124,-460.0,0.00019692,2]
[369672129,1751694641133,-465.04997535,0.00019692,2]
[369672131,1751694641142,-460.0,0.00019692,2]
[369672133,1751694641151,-460.0,0.00019692,2]
[369672135,1751694641160,-460.0,0.00019692,2]
[369672137,1751694641169,-460.0,0.00019692,2]
[369672139,1751694641179,-460.0,0.00019692,2]
[369672141,1751694641189,-461.6775609,0.00019692,2]
[369672143,1751694641198,-648.73,0.00019692,2]
[369672145,1751694641207,-460.0,0.00019692,2]
[369672147,1751694641217,-460.0,0.00019692,2]
[369672149,1751694641226,-460.0,0.00019692,2]
[369672151,1751694641236,-460.0,0.00019692,2]
[369672153,1751694641245,-460.0,0.00019692,2]
[369672155,1751694641255,-460.0,0.00019692,2]
[369672157,1751694641264,-462.04536469,0.00019692,2]
[369672159,1751694641274,-460.0,0.00019692,2]
[369672161,1751694641283,-460.94450049,0.00019692,2]
[369672163,1751694641293,-460.0,0.00019692,2]
[369672165,1751694641302,-460.0,0.00019692,2]
[369672167,1751694641312,-252.41505987,0.00019692,2]
[369672169,1751694641321,-460.0,0.00019692,2]
[369672171,1751694641332,-508.373236,0.00019692,2]
[369672173,1751694641341,-426.98318876,0.00019692,2]
[369672175,1751694641350,-460.0,0.00019692,2]
[369672177,1751694641364,-460.0,0.00019692,2]
[369672179,1751694641373,-460.0,0.00019693,2]
[369672181,1751694641382,-460.0,0.00019693,2]
[369672183,1751694641391,-460.0,0.00019693,2]
[369672185,1751694641400,-460.0,0.00019693,2]
[369672187,1751694641410,-460.0,0.00019693,2]
[369672189,1751694641419,-460.0,0.00019693,2]
[369672191,1751694641428,-460.0,0.00019693,2]
[369672193,1751694641438,-460.0,0.00019693,2]
[369672195,1751694641448,-460.0,0.00019693,2]
[369672208,1751694641559,-460.0,0.00019693,2]
[369672210,1751694641568,-460.0,0.00019693,2]
[369672212,1751694641578,-460.0,0.00019693,2]
[369672214,1751694641587,-460.0,0.00019693,2]
[369672216,1751694641596,-460.0,0.00019693,2]
[369672218,1751694641607,-460.0,0.00019693,2]
[369672220,1751694641616,-460.0,0.00019693,2]
[369672222,1751694641625,-460.0,0.00019693,2]
[369672224,1751694641634,-460.0,0.00019693,2]
[369672226,1751694641643,-460.0,0.00019693,2]
[369672228,1751694641652,-460.0,0.00019693,2]
[369672230,1751694641661,-460.0,0.00019693,2]
[369672232,1751694641672,-460.0,0.00019693,2]
[369672234,1751694641681,-460.0,0.00019693,2]
[369672236,1751694641691,-460.0,0.00019693,2]
[369672238,1751694641700,-460.0,0.00019693,2]
[369672240,1751694641710,-460.0,0.00019693,2]
[369672242,1751694641720,-460.0,0.00019693,2]
[369672244,1751694641729,-460.0,0.00019693,2]
[369672246,1751694641739,-460.0,0.00019693,2]
[369672248,1751694641748,-460.0,0.00019693,2]
[369672250,1751694641757,-460.0,0.00019693,2]
[369672252,1751694641766,-460.0,0.00019693,2]
[369672254,1751694641775,-467.09062991,0.00019693,2]
[369672256,1751694641784,-460.0,0.00019693,2]
[369672258,1751694641794,-460.0,0.00019693,2]
[369672260,1751694641803,-1000.0,0.00019693,2]
[369672262,1751694641813,-460.0,0.00019693,2]
[369672264,1751694641824,-460.0,0.00019693,2]
[369672267,1751694641835,-460.0,0.00019693,2]
[369672269,1751694641844,-460.0,0.00019693,2]
[369672271,1751694641854,-460.0,0.00019693,2]
[369672273,1751694641863,-460.0,0.00019693,2]
[369672275,1751694641872,-460.0,0.00019693,2]
[369672277,1751694641882,-460.0,0.00019693,2]
[369672279,1751694641892,-460.0,0.00019693,2]
[369672281,1751694641901,-460.0,0.00019693,2]
[369672283,1751694641911,-524.16128137,0.00019693,2]
[369672285,1751694641921,-460.0,0.00019693,2]
[369672287,1751694641930,-460.0,0.00019693,2]
[369672289,1751694641940,-500.0,0.00019693,2]
[369672291,1751694641949,-500.0,0.00019693,2]
[369672292,1751694641959,-460.0,0.00019693,2]
[369672294,1751694641968,-460.0,0.00019693,2]
[369672296,1751694641978,-460.0,0.00019693,2]
[369672299,1751694641988,-460.0,0.00019693,2]
[369672300,1751694641997,-460.0,0.00019693,2]
[369672303,1751694642007,-460.0,0.00019693,2]
[369672304,1751694642017,-460.0,0.00019693,2]
[369672306,1751694642026,-460.0,0.00019693,2]
[369672308,1751694642036,-460.0,0.00019693,2]
[369672309,1751694642044,-500.0,0.00019693,2]
[369672310,1751694642054,-500.0,0.00019693,2]
[369672311,1751694642062,-500.0,0.00019693,2]
[369672312,1751694642070,-500.0,0.00019693,2]
[369672313,1751694642079,-500.0,0.00019693,2]
[369672314,1751694642088,-500.0,0.00019693,2]
[369672315,1751694642097,-500.0,0.00019693,2]
[369672316,1751694642106,-500.0,0.00019693,2]
[369672317,1751694642116,-500.0,0.00019693,2]
[369672318,1751694642125,-500.0,0.00019693,2]
[369672319,1751694642134,-460.0,0.00019693,2]
[369672320,1751694642143,-500.0,0.00019693,2]
[369672321,1751694642152,-500.0,0.00019693,2]
[369672322,1751694642161,-500.0,0.00019693,2]
[369672323,1751694642172,-500.0,0.00019693,2]
[369672324,1751694642181,-623.04081526,0.00019693,2]
[369672325,1751694642190,-460.0,0.00019693,2]
[369672326,1751694642198,-460.0,0.00019693,2]
[369672327,1751694642207,-460.0,0.00019693,2]
[369672328,1751694642216,-460.0,0.00019693,2]
[369672329,1751694642225,-2691.58,0.00019693,2]
[369672330,1751694642234,-738.12,0.00019693,2]
[369672331,1751694642243,-460.0,0.00019693,2]
[369672332,1751694642251,-644.0,0.00019693,2]
[369672333,1751694642260,-973.36,0.00019693,2]
[369672334,1751694642269,-460.0,0.00019693,2]
[369672335,1751694642278,-460.0,0.00019693,2]
[369672336,1751694642287,-351713.67280027,0.00019694,2]
[369672337,1751694642296,-2778.48671657,0.00019715,2]
[369672338,1751694642305,-202.57,0.00019784,2]
[369672339,1751694642314,-541.65633628,0.00019784,2]
[369672340,1751694642323,-460.0,0.00019784,2]
[369672341,1751694642332,-460.0,0.00019784,2]
[369672342,1751694642341,-460.0,0.00019784,2]
[369672343,1751694642350,-460.0,0.00019784,2]
[369672344,1751694642364,-460.0,0.00019784,2]
[369672345,1751694642372,-460.0,0.00019784,2]
[369672346,1751694642381,-460.0,0.00019784,2]
[369672347,1751694642390,-460.0,0.00019784,2]
[369672348,1751694642400,-460.0,0.00019784,2]
[369672350,1751694642410,-460.0,0.00019784,2]
[369672352,1751694642420,-194.09989775,0.00019784,2]
[369672354,1751694642429,-460.0,0.00019784,2]
[369672356,1751694642438,-460.0,0.00019784,2]
[369672358,1751694642447,-460.0,0.00019784,2]
[369672360,1751694642457,-460.0,0.00019784,2]
[369672362,1751694642467,-460.0,0.00019784,2]
[369672364,1751694642476,-460.0,0.00019784,2]
[369672366,1751694642484,-460.0,0.00019784,2]
[369672368,1751694642494,-460.0,0.00019784,2]
[369672370,1751694642503,-460.0,0.00019784,2]
[369672372,1751694642512,-475.57891561,0.00019784,2]
[369672374,1751694642521,-460.0,0.00019784,2]
[369672376,1751694642530,-515.92733085,0.00019784,2]
[369672378,1751694642540,-460.0,0.00019784,2]
[369672380,1751694642550,-460.0,0.00019784,2]
[369672382,1751694642558,-460.0,0.00019784,2]
[369672384,1751694642567,-460.0,0.00019784,2]
[369672386,1751694642576,-460.0,0.00019784,2]
[369672388,1751694642585,-460.0,0.00019784,2]
[369672390,1751694642595,-460.0,0.00019784,2]
[369672392,1751694642604,-460.0,0.00019784,2]
[369672394,1751694642613,-460.0,0.00019784,2]
[369672396,1751694642622,-460.0,0.00019784,2]
[369672398,1751694642631,-460.0,0.00019784,2]
[369672400,1751694642641,-460.0,0.00019784,2]
[369672402,1751694642650,-460.0,0.00019784,2]
[369672404,1751694642660,-462.6209576,0.00019784,2]
[369672406,1751694642670,-460.95842758,0.00019784,2]
[369672408,1751694642679,-460.0,0.00019784,2]
[369672410,1751694642688,-460.0,0.00019784,2]
[369672412,1751694642697,-460.0,0.00019784,2]
[369672414,1751694642706,-460.0,0.00019784,2]
[369672416,1751694642716,-460.0,0.00019784,2]
[369672418,1751694642726,-460.0,0.00019784,2]
[369672420,1751694642735,-460.0,0.00019784,2]
[369672422,1751694642745,-462.48650715,0.00019784,2]
[369672424,1751694642754,-234.72294255,0.00019784,2]
[369672426,1751694642763,-460.0,0.00019784,2]
[369672428,1751694642774,-460.0,0.00019784,2]
[369672430,1751694642783,-460.0,0.00019784,2]
[369672432,1751694642791,-461.53563877,0.00019784,2]
[369672434,1751694642800,-460.0,0.00019784,2]
[369672436,1751694642810,-460.0,0.00019784,2]
[369672438,1751694642820,-460.0,0.00019784,2]
[369672440,1751694642829,-460.0,0.00019784,2]
[369672442,1751694642839,-460.0,0.00019784,2]
[369672444,1751694642848,-460.0,0.00019784,2]
[369672446,1751694642857,-460.0,0.00019784,2]
[369672448,1751694642867,-460.0,0.00019784,2]
[369672450,1751694642876,-289.88753324,0.00019784,2]
[369672452,1751694642885,-460.0,0.00019784,2]
[369672454,1751694642894,-460.0,0.00019784,2]